fUSD/lending_fUSD_20240122
["ID","MTS","AMOUNT","RATE_DAILY","PERIOD"]
[312541932,1705953048432,-165387.74799461,0.0003901,2]
[312541933,1705953048442,-16083.95230902,0.0003901,2]
[312541934,1705953048451,-12818.88259403,0.0003901,2]
[312541935,1705953048463,-1210.0,0.0003901,2]
[312541936,1705953048472,-2109.04301343,0.0003901,2]
[312541937,1705953048482,-332.72077285,0.0003901,2]
[312541938,1705953048491,-2874.16796895,0.0003901,2]
[312541939,1705953048500,-5768.06699317,0.0003901,2]
[312541940,1705953048509,-1453.42052717,0.0003901,2]
[312541941,1705953048518,-7047.40945295,0.0003901,2]
[312541942,1705953048527,-2613.24660811,0.0003901,2]
[312541943,1705953048537,-2346.17897057,0.0003901,2]
[312541944,1705953048546,-2553.79315752,0.0003901,2]
[312541945,1705953048556,-131344.09120855,0.0003901,2]
[312541946,1705953048566,-3105.81191255,0.0003901,2]
[312541947,1705953048575,-166.57002943,0.0003901,2]
[312541948,1705953048585,-9960.963909,0.0003901,2]
[312541949,1705953048594,-3022.55024974,0.0003901,2]
[312541950,1705953048604,-3644.15442523,0.0003901,2]
[312541951,1705953048614,-1703.91479972,0.0003901,7]
[312541952,1705953048623,-14461.54693621,0.0003901,2]
[312541953,1705953048632,-1021.52320501,0.0003901,2]
[312541954,1705953048642,-194830.04973996,0.0003901,2]
[312541955,1705953048651,-873.54062848,0.0003901,2]
[312541956,1705953048660,-26398.5007966,0.0003901,2]
[312541957,1705953048669,-9123.20656883,0.0003901,2]
[312541958,1705953048679,-460.99397351,0.0003901,2]
[312541959,1705953048689,-379.03577421,0.0003901,2]
[312541960,1705953048698,-14566.65922575,0.0003901,2]
[312541961,1705953048707,-226.93475914,0.0003901,2]
[312541962,1705953048725,-2038.78431826,0.0003901,2]
[312541963,1705953048734,-386.58212146,0.0003901,2]
[312541964,1705953048744,-524.15541974,0.0003901,2]
[312541965,1705953048754,-9784.16964339,0.0003901,2]
[312541966,1705953048766,-992.06121441,0.0003901,2]
[312541967,1705953048775,-348.67733217,0.0003901,2]
[312541968,1705953048785,-9340.28695326,0.0003901,2]
[312541969,1705953048795,-1757.63732505,0.0003901,2]
[312541970,1705953048805,-6008.30213847,0.0003901,2]
[312541971,1705953048815,-2277.98803463,0.0003901,2]
[312541972,1705953048825,-83448.62803341,0.0003901,30]
[312541973,1705953048835,-150.0,0.0003901,30]
[312541974,1705953048844,-2012.327934,0.0003901,30]
[312541975,1705953048853,-25612.0371,0.0003901,7]
[312541976,1705953048863,-7892.10578127,0.0003913,12]
[312541977,1705953048872,-200.0,0.0003926,2]
[312541978,1705953048881,-180.67,0.00039314,2]
[312541979,1705953048892,-205.0,0.00039333,21]
[312541980,1705953048901,-150.0,0.00039355,2]
[312541981,1705953048910,-489.98735503,0.000395,4]
[312541982,1705953048920,-4622.9686389,0.000395,4]
[312541983,1705953048929,-150.17,0.00039635,2]
[312541984,1705953048939,-150.1,0.000399,3]
[312541985,1705953048950,-44736.2602,0.000399,3]
[312541986,1705953048961,-3500.0,0.000399,14]
[312541987,1705953048970,-1000.0,0.000399,2]
[312541988,1705953048980,-150.0,0.00039999,2]
[312541989,1705953048990,-150.0,0.00039999,2]
[312541990,1705953048999,-155.0,0.0004,2]
[312541991,1705953049009,-16433.7603225,0.0004,2]
[312541992,1705953049019,-40747.59578758,0.0004,2]
[312541993,1705953049029,-350.0,0.0004,120]
[312541994,1705953049038,-400.0,0.0004,120]
[312541995,1705953049048,-431589.00742232,0.0004,4]
[312541996,1705953049058,-204.58,0.0004,2]
[312541997,1705953049067,-164.76,0.0004,7]
[312541998,1705953049078,-255.0,0.0004,12]
[312541999,1705953049088,-26340.29897288,0.0004,30]
[312542000,1705953049097,-786.43077659,0.00040005,5]
[312542001,1705953049106,-3000.0,0.0004002,2]
[312542002,1705953049116,-213.3,0.00040349,15]
[312542003,1705953049126,-60000.0,0.000405,2]
[312542004,1705953049136,-38282.23609453,0.000405,2]
[312542005,1705953049146,-826.65231554,0.00040614,9]
[312542006,1705953049157,-10926.02598082,0.000407,2]
[312542007,1705953049166,-200.0,0.00040733,2]
[312542008,1705953049176,-930.0,0.00040867,5]
[312542009,1705953049185,-150.17,0.00040913,2]
[312542010,1705953049194,-800.0,0.00041,2]
[312542011,1705953049203,-1000.0,0.00041,9]
[312542012,1705953049215,-1785.72,0.00041095,2]
[312542013,1705953049224,-1785.72,0.00041095,2]
[312542014,1705953049233,-1785.72,0.00041095,2]
[312542015,1705953049243,-1785.72,0.00041095,2]
[312542016,1705953049253,-1785.72,0.00041095,2]
[312542017,1705953049262,-1785.72,0.00041095,2]
[312542018,1705953049271,-1785.72,0.00041095,2]
[312542019,1705953049281,-1785.72,0.00041095,2]
[312542020,1705953049290,-1785.72,0.00041095,2]
[312542021,1705953049300,-1785.72,0.00041095,2]
[312542022,1705953049309,-1785.72,0.00041095,2]
[312542023,1705953049318,-1785.72,0.00041095,2]
[312542024,1705953049327,-1785.72,0.00041095,2]
[312542025,1705953049337,-1785.72,0.00041095,2]
[312542026,1705953049346,-1785.72,0.00041095,2]
[312542027,1705953049355,-1785.72,0.00041095,2]
[312542028,1705953049365,-1785.72,0.00041095,2]
[312542029,1705953049374,-1785.72,0.00041095,2]
[312542030,1705953049383,-1785.72,0.00041095,2]
[312542031,1705953049393,-1785.72,0.00041095,2]
[312542032,1705953049402,-1785.72,0.00041095,2]
[312542033,1705953049411,-1785.72,0.00041095,2]
[312542034,1705953049420,-1785.72,0.00041095,2]
[312542035,1705953049429,-1785.84934692,0.00041095,2]
[312542036,1705953049438,-179.0,0.00041096,2]
[312542037,1705953049448,-786.43077659,0.00041268,5]
[312542038,1705953049457,-7892.10578127,0.00041393,15]
[312542039,1705953049468,-883.30455516,0.00041394,3]
[312542040,1705953049478,-180.67,0.00041578,2]
[312542041,1705953049486,-2329.58614686,0.000419,15]
[312542042,1705953049495,-471.07690795,0.00042,4]
[312542043,1705953049505,-204.58,0.00042,2]
[312542044,1705953049514,-1000.0,0.00042,12]
[312542045,1705953049523,-350.0,0.00042082,120]
[312542046,1705953049532,-400.0,0.00042164,120]
[312542047,1705953049541,-150.17,0.00042192,2]
[312542048,1705953049550,-200.0,0.00042205,2]
[312542049,1705953049559,-3000.0,0.0004252,14]
[312542050,1705953049569,-786.43077659,0.00042532,5]
[312542051,1705953049578,-538.62,0.00042707,2]
[312542052,1705953049589,-5747.9071747,0.0004306,8]
[312542053,1705953049599,-2845.21405147,0.0004306,7]
[312542054,1705953049740,-1989.42314588,0.0004306,8]
[312542055,1705953049786,-3448.84176687,0.0004306,8]
[312542056,1705953049797,-4713.08527931,0.0004306,6]
[312542057,1705953049806,-2023.32465854,0.0004306,8]
[312542058,1705953049815,-200.32334249,0.0004306,6]
[312542059,1705953049825,-4076.50942009,0.0004306,8]
[312542060,1705953049835,-1834.42923904,0.0004306,8]
[312542061,1705953049845,-3668.85847808,0.0004306,8]
[312542062,1705953049854,-21230.75155618,0.00043121,19]
[312542063,1705953049863,-25673.39627936,0.00043121,19]
[312542064,1705953049873,-63160.64219309,0.00043121,20]
[312542065,1705953049882,-8414.66761566,0.00043121,15]
[312542066,1705953049891,-8592.58803044,0.00043121,19]
[312542067,1705953049901,-150.17,0.0004347,2]
[312542068,1705953049910,-7892.10578127,0.00043655,18]
[312542069,1705953049920,-200.0,0.00043677,2]
[312542070,1705953049929,-786.43077659,0.00043795,5]
[312542071,1705953049939,-180.67,0.00043841,2]
[312542072,1705953049948,-164.76,0.000439,7]
[312542073,1705953049957,-19938.01460343,0.00044,30]
[312542074,1705953049968,-164.0,0.00044,90]
[312542075,1705953049977,-1363.0,0.00044,15]
[312542076,1705953049986,-216.0,0.00044,90]
[312542077,1705953049996,-2248.06819657,0.00044,2]
[312542078,1705953050005,-213.3,0.00044085,15]
[312542079,1705953050015,-350.0,0.00044164,120]
[312542080,1705953050025,-826.65231554,0.00044186,11]
[312542081,1705953050035,-400.0,0.00044329,120]
[312542082,1705953050045,-204.58,0.000444,2]
[312542083,1705953050055,-205.0,0.000445,31]
[312542084,1705953050065,-6848.86152782,0.0004455,2]
[312542085,1705953050074,-150.17,0.00044749,2]
[312542086,1705953050084,-381.93576223,0.0004475,30]
[312542087,1705953050094,-5285.70373901,0.00044759,2]
[312542088,1705953050103,-400.3765365,0.00045,120]
[312542089,1705953050113,-1000.0,0.00045,15]
[312542090,1705953050123,-1000.0,0.00045,7]
[312542091,1705953050133,-137957.0950232,0.00045,30]
[312542092,1705953050144,-3000.0,0.0004502,26]
[312542093,1705953050154,-786.43077659,0.00045058,5]
[312542094,1705953050164,-883.30455516,0.00045133,7]
[312542095,1705953050174,-200.0,0.00045149,2]
[312542096,1705953050184,-937.91304743,0.0004524,4]
[312542097,1705953050194,-154.15370033,0.00045451,27]
[312542098,1705953050204,-198.6432838,0.0004585,2]
[312542099,1705953050216,-2829.6428496,0.00045854,2]
[312542100,1705953050225,-7892.10578127,0.00045918,21]
[312542101,1705953050235,-5800.0,0.00045983,7]
[312542102,1705953050244,-5800.0,0.00045992,7]
[312542103,1705953050253,-5800.0,0.00046,7]
[312542104,1705953050262,-3898.8754851,0.00046,7]
[312542105,1705953050272,-152.74987968,0.00046016,30]
[312542106,1705953050283,-150.75965449,0.00046027,2]
[312542107,1705953050293,-216.0,0.00046027,90]
[312542108,1705953050303,-150.17,0.00046027,2]
[312542109,1705953050313,-152.74987968,0.00046084,30]
[312542110,1705953050323,-180.67,0.00046105,2]
[312542111,1705953050332,-350.0,0.00046247,120]
[312542112,1705953050342,-161.12989169,0.00046308,30]
[312542113,1705953050352,-786.43077659,0.00046321,5]
[312542114,1705953050362,-152.74987968,0.00046328,30]
[312542115,1705953050372,-153.39378141,0.00046385,30]
[312542116,1705953050381,-400.0,0.00046493,120]
[312542117,1705953050391,-14528.77160374,0.000465,12]
[312542118,1705953050401,-204.58,0.000465,2]
[312542119,1705953050411,-187.5,0.00046575,120]
[312542120,1705953050422,-167.4075791,0.00046582,30]
[312542121,1705953050431,-32277.53853692,0.000469,3]
[312542122,1705953050442,-405.77712545,0.00047,2]
[312542123,1705953050452,-155.07748221,0.00047172,30]
[312542124,1705953050464,-161.84092308,0.00047184,30]
[312542125,1705953050473,-150.17,0.00047306,2]
[312542126,1705953050483,-657.81618824,0.000475,10]
[312542127,1705953050492,-3000.0,0.0004752,37]
[312542128,1705953050502,-786.43077659,0.00047584,5]
[312542129,1705953050512,-161.84092308,0.00047653,30]
[312542130,1705953050521,-161.84092308,0.00047687,30]
[312542131,1705953050531,-164.76,0.000477,7]
[312542132,1705953050540,-826.65231554,0.00047757,13]
[312542133,1705953050550,-213.3,0.00047821,15]
[312542134,1705953050560,-152.74987968,0.00047869,30]
[312542135,1705953050570,-942.90318839,0.000479,30]
[312542136,1705953050580,-157.29208152,0.00047936,30]
[312542137,1705953050589,-153.76536895,0.00047998,30]
[312542138,1705953050601,-1000.0,0.00048,18]
[312542139,1705953050611,-204.58,0.000481,2]
[312542140,1705953050622,-161.84092308,0.00048172,30]
[312542141,1705953050632,-7892.10578127,0.0004818,24]
[312542142,1705953050642,-169.52862128,0.00048251,30]
[312542143,1705953050652,-152.74987968,0.00048259,30]
[312542144,1705953050662,-161.84092308,0.00048318,30]
[312542145,1705953050672,-350.0,0.00048329,120]
[312542146,1705953050683,-180.67,0.00048369,2]
[312542147,1705953050694,-161.84092308,0.00048374,30]
[312542148,1705953050705,-161.84092308,0.00048388,30]
[312542149,1705953050719,-152.55169956,0.00048485,30]
[312542150,1705953050731,-152.55169956,0.00048554,30]
[312542151,1705953050741,-150.17,0.00048585,2]
[312542152,1705953050750,-1000.0,0.0004863,4]
[312542153,1705953050761,-160.13225253,0.00048654,30]
[312542154,1705953050770,-400.0,0.00048658,120]
[312542155,1705953050780,-160.35028919,0.00048767,4]
[312542156,1705953050789,-786.43077659,0.00048847,5]
[312542157,1705953050799,-883.30455516,0.00048872,10]
[312542158,1705953050809,-161.84092308,0.00048907,30]
[312542159,1705953050818,-161.84092308,0.0004897,30]
[312542160,1705953050828,-152.0,0.00048981,3]
[312542161,1705953050839,-1031.76698994,0.00049,4]
[312542162,1705953050848,-152.74987968,0.00049102,30]
[312542163,1705953050857,-3048.8527478,0.00049223,29]
[312542164,1705953050866,-1000.0,0.000493,2]
[312542165,1705953050875,-375.0,0.00049315,120]
[312542166,1705953050885,-150.0,0.00049315,30]
[312542167,1705953050894,-205.0,0.00049667,40]
[312542168,1705953050904,-152.74987968,0.00049726,30]
[312542169,1705953050913,-161.84092308,0.00049739,30]
[312542170,1705953050923,-161.84092308,0.00049769,30]
[312542171,1705953050934,-5000.0,0.00049801,3]
[312542172,1705953050944,-150.17,0.00049863,2]
[312542173,1705953050953,-152.74987968,0.00049877,30]
[312542174,1705953050967,-427.75,0.00049926,2]
[312542175,1705953050977,-182.86291573,0.0005,4]
[312542176,1705953050988,-273.1475843,0.0005,2]
[312542177,1705953050998,-2953.14494726,0.0005,4]
[312542178,1705953051007,-268.9859369,0.0005,4]
[312542179,1705953051017,-155.0,0.0005,4]
[312542180,1705953051027,-12303.42922454,0.0005,20]
[312542181,1705953051037,-204.58,0.0005,2]
[312542182,1705953051046,-1000.0,0.0005,25]
[312542183,1705953051056,-1015.0,0.0005,22]
[312542184,1705953051065,-5654.35575262,0.0005,120]
[312542185,1705953051074,-11628.0,0.0005,12]
[312542186,1705953051083,-300.0,0.0005,35]
[312542187,1705953051092,-150.23,0.0005,2]
[312542188,1705953051102,-150.23,0.0005,2]
[312542189,1705953051112,-150.23,0.0005,2]
[312542190,1705953051121,-150.23,0.0005,2]
[312542191,1705953051136,-150.23,0.0005,2]
[312542192,1705953051145,-150.23,0.0005,2]
[312542193,1705953051155,-150.23,0.0005,2]
[312542194,1705953051165,-150.23,0.0005,2]
[312542195,1705953051174,-150.23,0.0005,2]
[312542196,1705953051183,-150.23,0.0005,2]
[312542197,1705953051193,-150.23,0.0005,2]
[312542198,1705953051202,-150.23,0.0005,2]
[312542199,1705953051213,-150.23,0.0005,2]
[312542200,1705953051223,-150.23,0.0005,2]
[312542201,1705953051233,-150.23,0.0005,2]
[312542202,1705953051242,-150.23,0.0005,2]
[312542203,1705953051252,-150.23,0.0005,2]
[312542204,1705953051262,-150.23,0.0005,2]
[312542205,1705953051272,-150.23,0.0005,2]
[312542206,1705953051282,-150.23,0.0005,2]
[312542207,1705953051292,-150.23,0.0005,2]
[312542208,1705953051304,-150.23,0.0005,2]
[312542209,1705953051315,-150.23,0.0005,2]
[312542210,1705953051324,-150.23,0.0005,2]
[312542211,1705953051334,-150.23,0.0005,2]
[312542212,1705953051345,-150.23,0.0005,2]
[312542213,1705953051356,-150.23,0.0005,2]
[312542214,1705953051366,-150.23,0.0005,2]
[312542215,1705953051376,-150.23,0.0005,2]
[312542216,1705953051386,-150.23,0.0005,2]
[312542217,1705953051396,-150.23,0.0005,2]
[312542218,1705953051406,-150.23,0.0005,2]
[312542219,1705953051415,-150.23,0.0005,2]
[312542220,1705953051426,-150.23,0.0005,2]
[312542221,1705953051436,-150.23,0.0005,2]
[312542222,1705953051447,-150.23,0.0005,2]
[312542223,1705953051457,-150.23,0.0005,2]
[312542224,1705953051471,-150.23,0.0005,2]
[312542225,1705953051481,-150.23,0.0005,2]
[312542226,1705953051491,-150.23,0.0005,2]
[312542227,1705953051501,-150.23,0.0005,2]
[312542228,1705953051512,-150.23,0.0005,2]
[312542229,1705953051521,-150.23,0.0005,2]
[312542230,1705953051531,-150.23,0.0005,2]
[312542231,1705953051541,-150.23,0.0005,2]
[312542232,1705953051552,-150.23,0.0005,2]
[312542233,1705953051563,-150.23,0.0005,2]
[312542234,1705953051573,-150.23,0.0005,2]
[312542235,1705953051584,-150.23,0.0005,2]
[312542236,1705953051594,-150.23,0.0005,2]
[312542237,1705953051604,-150.23,0.0005,2]
[312542238,1705953051615,-150.23,0.0005,2]
[312542239,1705953051626,-150.23,0.0005,2]
[312542240,1705953051637,-150.23,0.0005,2]
[312542241,1705953051647,-150.23,0.0005,2]
[312542242,1705953051657,-150.23,0.0005,2]
[312542243,1705953051667,-150.23,0.0005,2]
[312542244,1705953051678,-150.23,0.0005,2]
[312542245,1705953051688,-150.23,0.0005,2]
[312542246,1705953051698,-150.23,0.0005,2]
[312542247,1705953051709,-150.23,0.0005,2]
[312542248,1705953051728,-150.23,0.0005,2]
[312542249,1705953051738,-150.23,0.0005,2]
[312542250,1705953051748,-150.23,0.0005,2]
[312542251,1705953051758,-150.23,0.0005,2]
[312542252,1705953051768,-150.23,0.0005,2]
[312542253,1705953051778,-150.23,0.0005,2]
[312542254,1705953051788,-150.23,0.0005,2]
[312542255,1705953051798,-150.23,0.0005,2]
[312542256,1705953051809,-150.23,0.0005,2]
[312542257,1705953051820,-150.23,0.0005,2]
[312542258,1705953051830,-150.23,0.0005,2]
[312542259,1705953051841,-150.23,0.0005,2]
[312542260,1705953051852,-150.23,0.0005,2]
[312542261,1705953051862,-150.23,0.0005,2]
[312542262,1705953051872,-150.23,0.0005,2]
[312542263,1705953051882,-150.23,0.0005,2]
[312542264,1705953051893,-150.23,0.0005,2]
[312542265,1705953051903,-150.23,0.0005,2]
[312542266,1705953051914,-150.23,0.0005,2]
[312542267,1705953051925,-150.23,0.0005,2]
[312542268,1705953051935,-150.23,0.0005,2]
[312542269,1705953051945,-150.23,0.0005,2]
[312542270,1705953051956,-150.23,0.0005,2]
[312542271,1705953051969,-150.23,0.0005,2]
[312542272,1705953051980,-150.23,0.0005,2]
[312542273,1705953051991,-150.23,0.0005,2]
[312542274,1705953052001,-150.23,0.0005,2]
[312542275,1705953052012,-150.23,0.0005,2]
[312542276,1705953052022,-150.23,0.0005,2]
[312542277,1705953052032,-150.23,0.0005,2]
[312542278,1705953052043,-150.23,0.0005,2]
[312542279,1705953052053,-150.23,0.0005,2]
[312542280,1705953052063,-150.23,0.0005,2]
[312542281,1705953052073,-150.23,0.0005,2]
[312542282,1705953052083,-150.23,0.0005,2]
[312542283,1705953052092,-150.23,0.0005,2]
[312542284,1705953052103,-150.23,0.0005,2]
[312542285,1705953052113,-150.23,0.0005,2]
[312542286,1705953052123,-150.23,0.0005,2]
[312542287,1705953052132,-3000.0,0.0005002,49]
[312542288,1705953052142,-161.84092308,0.00050054,60]
[312542289,1705953052152,-786.43077659,0.00050111,14]
[312542290,1705953052163,-161.84092308,0.00050189,60]
[312542291,1705953052173,-160.00953017,0.000502,30]
[312542292,1705953052182,-157.2147613,0.00050238,60]
[312542293,1705953052192,-152.74987968,0.00050322,60]
[312542294,1705953052202,-157.2147613,0.00050398,60]
[312542295,1705953052211,-350.0,0.00050411,120]
[312542296,1705953052278,-7892.10578127,0.00050442,27]
[312542297,1705953052289,-157.29208152,0.00050611,60]
[312542298,1705953052299,-180.67,0.00050633,2]
[312542299,1705953052308,-244.52237965,0.00050684,40]
[312542300,1705953052318,-400.0,0.00050822,120]
[312542301,1705953052328,-4796.74207242,0.00051,4]
[312542302,1705953052338,-2630.0,0.00051,120]
[312542303,1705953052348,-154.47221725,0.00051065,60]
[312542304,1705953052357,-164.76,0.000511,7]
[312542305,1705953052368,-150.17,0.00051142,2]
[312542306,1705953052378,-204.58,0.000513,2]
[312542307,1705953052387,-161.84092308,0.00051317,60]
[312542308,1705953052398,-826.65231554,0.00051329,14]
[312542309,1705953052408,-155.13322604,0.00051336,60]
[312542310,1705953052417,-786.43077659,0.00051374,14]
[312542311,1705953052428,-213.3,0.00051557,120]
[312542312,1705953052438,-153.76536895,0.00051689,60]
[312542313,1705953052449,-5000.0,0.00051831,3]
[312542314,1705953052459,-2087.26853491,0.00052,2]
[312542315,1705953052473,-1000.17496016,0.00052,120]
[312542316,1705953052483,-19530.3563608,0.00052,30]
[312542317,1705953052493,-1000.0,0.00052,25]
[312542318,1705953052503,-1003.0,0.00052,26]
[312542319,1705953052514,-562.5,0.00052054,120]
[312542320,1705953052523,-3000.0,0.00052054,2]
[312542321,1705953052534,-647.57253148,0.00052054,2]
[312542322,1705953052545,-433.91206314,0.00052054,2]
[312542323,1705953052555,-1000.0,0.000521,2]
[312542324,1705953052566,-152.74987968,0.00052131,60]
[312542325,1705953052575,-152.74987968,0.00052185,60]
[312542326,1705953052585,-152.74987968,0.00052249,60]
[312542327,1705953052595,-161.84092308,0.00052315,60]
[312542328,1705953052606,-150.17,0.0005242,2]
[312542329,1705953052617,-152.74987968,0.00052427,60]
[312542330,1705953052626,-161.84092308,0.00052437,60]
[312542331,1705953052637,-161.84092308,0.00052459,60]
[312542332,1705953052647,-350.0,0.00052493,120]
[312542333,1705953052658,-159.77004051,0.00052558,60]
[312542334,1705953052668,-883.30455516,0.00052611,13]
[312542335,1705953052678,-786.43077659,0.00052637,14]
[312542336,1705953052689,-7892.10578127,0.00052705,30]
[312542337,1705953052699,-181.25,0.00052789,60]
[312542338,1705953052709,-153.39378141,0.00052895,60]
[312542339,1705953052728,-180.67,0.00052897,2]
[312542340,1705953052738,-400.0,0.00052986,120]
[312542341,1705953052748,-204.58,0.00053,30]
[312542342,1705953052759,-1000.0,0.00053,25]
[312542343,1705953052770,-154.15370033,0.00053086,56]
[312542344,1705953052779,-154.62305151,0.00053126,60]
[312542345,1705953052790,-308.0,0.00053161,30]
[312542346,1705953052801,-248.0,0.00053269,30]
[312542347,1705953052812,-150.0,0.000533,120]
[312542348,1705953052822,-161.84092308,0.00053472,60]
[312542349,1705953052833,-35000.0,0.000535,2]
[312542350,1705953052842,-152.74987968,0.0005368,60]
[312542351,1705953052852,-150.17,0.00053699,2]
[312542352,1705953052861,-308.0,0.00053709,30]
[312542353,1705953052870,-157.29208152,0.00053749,60]
[312542354,1705953052880,-248.0,0.00053818,30]
[312542355,1705953052889,-700.0,0.000539,19]
[312542356,1705953052898,-198.6432838,0.000539,2]
[312542357,1705953052908,-2829.6428496,0.000539,2]
[312542358,1705953052918,-786.43077659,0.000539,14]
[312542359,1705953052927,-200.0,0.00053987,39]
[312542360,1705953052937,-150.0,0.00053999,9]
[312542361,1705953052947,-150.0,0.00053999,9]
[312542362,1705953052957,-150.0,0.00053999,9]
[312542363,1705953052972,-150.0,0.00053999,9]
[312542364,1705953052981,-150.0,0.00053999,9]
[312542365,1705953052990,-150.0,0.00053999,9]
[312542366,1705953052998,-150.0,0.00053999,9]
[312542367,1705953053006,-150.0,0.00053999,9]
[312542368,1705953053015,-151.0,0.00053999,2]
[312542369,1705953053025,-5000.0,0.00054,2]
[312542370,1705953053034,-1799809.74531824,0.00054,4]
[312542371,1705953053388,-492.6875681,0.00054,4]
[312542372,1705953053400,-369.43985488,0.00054,4]
[312542373,1705953053413,-19830.0,0.00054,4]
[312542374,1705953053425,-311.71501464,0.00054,4]
[312542375,1705953053436,-600.92555227,0.00054,4]
[312542376,1705953053449,-500.0,0.00054,4]
[312542377,1705953053460,-4801.62078383,0.00054,4]
[312542378,1705953053484,-491.29197761,0.00054,4]
[312542379,1705953053498,-428.12,0.00054,4]
[312542380,1705953053510,-277.16716062,0.00054,4]
[312542381,1705953053540,-3967.0,0.00054,4]
[312542382,1705953053552,-3036.61328653,0.00054,4]
[312542383,1705953053564,-594.91090339,0.00054,4]
[312542384,1705953053576,-585.65050295,0.00054,4]
[312542385,1705953053589,-4530.7307669,0.00054,4]
[312542386,1705953053607,-381.63661974,0.00054,4]
[312542387,1705953053620,-521.12502168,0.00054,4]
[312542388,1705953053633,-1157.8,0.00054,4]
[312542389,1705953053646,-7915.4,0.00054,4]
[312542390,1705953053658,-398.54966,0.00054,4]
[312542391,1705953053672,-66473.01888024,0.00054,4]
[312542392,1705953053681,-1001.6357,0.00054,120]
[312542393,1705953053691,-51100.34541976,0.00054,120]
[312542394,1705953053706,-943.37952397,0.00054,120]
[312542395,1705953053727,-315.6,0.00054,120]
[312542396,1705953053740,-474.95197116,0.00054,120]
[312542397,1705953053755,-269.38241397,0.00054,120]
[312542398,1705953053767,-12329.37012858,0.00054,120]
[312542399,1705953053779,-40634.51966365,0.00054,120]
[312542400,1705953053792,-918.92275125,0.00054,120]
[312542401,1705953053804,-22841.30700001,0.00054,120]
[312542402,1705953053817,-1283.22938915,0.00054,120]
[312542403,1705953053831,-344.3281923,0.00054,120]
[312542404,1705953053844,-5729.58423221,0.00054,120]
[312542405,1705953053857,-339.39498555,0.00054,120]
[312542406,1705953054233,239.50932439,0.0002,2]
[312542407,1705953079469,60.49067561,0.00021,2]
[312542408,1705953079504,93.71227018,0.00021,2]
[312542409,1705953084609,2971.314,0.00021726,2]
[312542410,1705953092588,536.58174083,0.0001,2]
[312542411,1705953097306,8000.0,0.00011,2]
[312542412,1705953102372,-175.0,0.00022999,2]
[312542413,1705953113059,3890.02404243,0.00021,4]
[312542414,1705953113658,350.97314023,0.00015,10]
[312542415,1705953114686,4605.02837005,6.94e-05,2]
[312542416,1705953114712,5223.13407396,6.94e-05,2]
[312542417,1705953138832,155.0,0.0002,2]
[312542418,1705953156595,-555.0,0.00022,2]
[312542419,1705953157703,-161.80307959,0.00021999,2]
[312542420,1705953157727,-393.19692041,0.00022,2]
[312542421,1705953158630,-555.0,0.00022,2]
[312542422,1705953159029,-555.0,0.00022,2]
[312542423,1705953163664,21208.70072832,0.0002,2]
[312542436,1705953170784,161.80307959,0.00020698,2]
[312542439,1705953177322,6089.46292903,0.0002,2]
[312542440,1705953179132,-555.0,0.00021999,2]
[312542441,1705953180110,-555.0,0.00021999,2]
[312542442,1705953181171,-555.0,0.00021999,2]
[312542443,1705953182113,-555.0,0.00021999,2]
[312542444,1705953183182,-555.0,0.00021999,2]
[312542445,1705953189264,161.80307959,0.00020698,2]